fUSD/lending_fUSD_20250824
["ID","MTS","AMOUNT","RATE_DAILY","PERIOD"]
[381100337,1756039842725,-1271.49,0.00021195,2]
[381100339,1756039842735,-1285.44,0.00021195,2]
[381100341,1756039842744,-1280.02,0.00021195,2]
[381100343,1756039842754,-326.14512528,0.00021232,2]
[381100345,1756039842764,-287.61899177,0.00021406,2]
[381100347,1756039842773,-3000.0,0.00021412,2]
[381100349,1756039842783,-1800.0,0.00021412,2]
[381100351,1756039842792,-500.0,0.00021445,2]
[381100353,1756039842802,-150.0,0.0002155,2]
[381100355,1756039842812,-600.0,0.00021616,2]
[381100357,1756039842823,-162.83341251,0.00021616,2]
[381100359,1756039842832,-799.32,0.00021672,2]
[381100361,1756039842842,-469.13,0.00021672,2]
[381100364,1756039842853,-469.13,0.00021672,2]
[381100366,1756039842863,-799.32,0.00021672,2]
[381100368,1756039842873,-469.13,0.00021672,2]
[381100370,1756039842883,-799.32,0.00021672,2]
[381100372,1756039842893,-799.32,0.00021672,2]
[381100374,1756039842903,-469.13,0.00021672,2]
[381100376,1756039842913,-467.68,0.00021672,2]
[381100378,1756039842922,-799.32,0.00021672,2]
[381100380,1756039842932,-1342.71,0.00021672,2]
[381100382,1756039842942,-4876.52037824,0.00021918,2]
[381100384,1756039842956,-123.47962176,0.00021918,2]
[381100387,1756039842966,-151.0,0.00021918,2]
[381100389,1756039842976,-151.0,0.00021918,2]
[381100391,1756039842986,-151.0,0.00021918,2]
[381100392,1756039842995,-151.0,0.00021918,2]
[381100393,1756039843006,-151.0,0.00021918,2]
[381100395,1756039843016,-158.806991,0.00021918,2]
[381100396,1756039843026,-500.0,0.00021918,2]
[381100397,1756039843036,-150.0,0.00021918,2]
[381100399,1756039843046,-1029.74,0.00021945,30]
[381100401,1756039843056,-215.009787,0.00021977,2]
[381100402,1756039843066,-481.51,0.000221,2]
[381100403,1756039843076,-1000.0,0.00022201,2]
[381100404,1756039843086,-661.038,0.00022216,2]
[381100405,1756039843096,-500.0,0.00022309,2]
[381100406,1756039843107,-240.48221428,0.00022349,2]
[381100407,1756039843120,-3000.0,0.00022508,2]
[381100408,1756039843130,-1800.0,0.00022508,2]
[381100409,1756039843140,-500.0,0.00022701,2]
[381100410,1756039843151,-189.0,0.0002273,2]
[381100411,1756039843160,-298.26089446,0.00022775,2]
[381100412,1756039843170,-500.0,0.00023092,2]
[381100415,1756039843181,-326.14512528,0.00023166,2]
[381100417,1756039843191,-481.51,0.0002331,2]
[381100419,1756039843201,-458.63746581,0.00023336,2]
[381100421,1756039843212,-500.0,0.00023483,2]
[381100424,1756039843222,-168.0,0.00023589,2]
[381100426,1756039843231,-3000.0,0.00023604,2]
[381100429,1756039843241,-1800.0,0.00023604,2]
[381100431,1756039843251,-168.0,0.00023794,2]
[381100433,1756039843260,-500.0,0.00023875,2]
[381100435,1756039843271,-200.0,0.0002389,2]
[381100437,1756039843280,-185.0,0.0002392,2]
[381100439,1756039843290,-215.009787,0.00023966,2]
[381100441,1756039843299,-808.22917,0.00023966,2]
[381100443,1756039843310,-2873.76,0.00024,7]
[381100445,1756039843321,-6006.0,0.00024,3]
[381100447,1756039843330,-979.42678488,0.00024,2]
[381100449,1756039843340,-900.0,0.00024,9]
[381100451,1756039843349,-900.0,0.00024,9]
[381100453,1756039843359,-900.0,0.00024,9]
[381100455,1756039843368,-229.96415853,0.00024,9]
[381100457,1756039843381,-670.03584147,0.00024,9]
[381100459,1756039843390,-900.0,0.00024,9]
[381100461,1756039843399,-700.8616657,0.00024,9]
[381100463,1756039843409,-2495.25653274,0.00024,7]
[381100466,1756039843425,-2275.4,0.00024,7]
[381100576,1756039846386,-726.85080326,0.00017669,2]
[381100577,1756039846413,-3268.12476265,0.00017669,2]
[381100578,1756039846423,-6506.41271834,0.00020158,2]
[381100579,1756039846432,-212.11701231,0.00023336,2]
[381100580,1756039846442,-10229.34346726,0.00024,7]
[381100581,1756039846451,-844.35788172,0.00024,7]
[381100582,1756039846460,-458.63746581,0.00024,7]
[381100583,1756039846470,-2000.0,0.000241,2]
[381100584,1756039846479,-150.85,0.00024138,2]
[381100585,1756039846489,-539.59,0.00024138,2]
[381100586,1756039846498,-302.07,0.00024138,2]
[381100587,1756039846508,-539.59,0.00024138,2]
[381100588,1756039846517,-539.59,0.00024138,2]
[381100589,1756039846527,-309.29654756,0.00024144,2]
[381100590,1756039846539,-1600.0,0.00024152,2]
[381100591,1756039846548,-500.0,0.00024266,2]
[381100592,1756039846558,-500.0,0.00024273,2]
[381100593,1756039846567,-500.0,0.00024473,2]
[381100594,1756039846576,-500.0,0.00024473,2]
[381100595,1756039846586,-500.0,0.00024473,2]
[381100596,1756039846595,-344.91096999,0.00024473,2]
[381100610,1756039847260,510.81,0.0002876,120]
[381100648,1756039847632,-158.07335005,0.000139,2]
[381100650,1756039847642,-153.0,0.00017777,2]
[381100651,1756039847651,-153.0,0.00017777,2]
[381100653,1756039847661,-153.0,0.00017777,2]
[381100656,1756039847672,-3994.97556591,0.00019059,2]
[381100658,1756039847682,-1000.0,0.00021735,2]
[381100660,1756039847692,-1000.0,0.00024452,2]
[381100662,1756039847701,-155.4756871,0.00024473,2]
[381100663,1756039847711,-500.0,0.00024473,2]
[381100665,1756039847721,-620.12,0.00024499,2]
[381100667,1756039847731,-539.42,0.00024548,2]
[381100669,1756039847740,-481.51,0.0002455,2]
[381100671,1756039847750,-686.80743012,0.000246,2]
[381100674,1756039847760,-921.53339393,0.00024658,2]
[381100676,1756039847770,-1000.0,0.00024658,2]
[381100678,1756039847779,-500.0,0.00024658,2]
[381100679,1756039847789,-500.0,0.00024673,2]
[381100681,1756039847799,-326.48463338,0.00024673,2]
[381100683,1756039847810,-500.36820422,0.00024673,2]
[381100685,1756039847819,-500.0,0.00024673,2]
[381100687,1756039847829,-500.0,0.00024673,2]
[381100689,1756039847838,-153.25,0.0002469,2]
[381100691,1756039847848,-639.81357362,0.0002469,2]
[381100693,1756039847858,-1000.0,0.00024699,2]
[381100695,1756039847867,-2677.36,0.00024699,2]
[381100697,1756039847877,-240.48221428,0.00024699,2]
[381100699,1756039847887,-76041.0962343,0.000247,2]
[381100748,1756039848388,-285.29691204,0.000247,2]
[381100750,1756039848400,-1265.92787098,0.000247,2]
[381100757,1756039848466,-626.8265502,0.000247,2]
[381100790,1756039848826,-2015.3551697,0.000247,2]
[381100791,1756039848837,-383.5086327,0.000247,2]
[381100792,1756039848885,-4070.64884053,0.000247,2]
[381100793,1756039848896,-458.47014067,0.000247,2]
[381100894,1756039874027,288.0,0.00028767,120]
[381100940,1756040902989,2853.68,0.00028767,120]
[381100964,1756041031477,-165.25122969,0.00012733,2]
[381100965,1756041031488,-227.95,0.00013699,2]
[381100966,1756041031502,-1200.0,0.00014006,2]
[381100967,1756041031511,-300.0,0.00014007,2]
[381100968,1756041031521,-300.0,0.00014007,2]
[381100969,1756041031531,-2500.0,0.00014007,2]
[381100970,1756041031542,-867.0,0.00014099,2]
[381100971,1756041031552,-49.79534316,0.000141,2]
[381100972,1756041031563,-424.03203778,0.000141,2]
[381100973,1756041031575,-26.17261906,0.000141,2]
[381100974,1756041031585,-341.93999063,0.000141,2]
[381100975,1756041031594,-500.0,0.000141,2]
[381100976,1756041031603,-458.63746581,0.00015484,2]
[381100977,1756041031614,-212.11701231,0.00015484,2]
[381100978,1756041031623,-150.9,0.00016275,2]
[381100979,1756041031633,-267.46074303,0.0001675,2]
[381100980,1756041031643,-500.0,0.0001715,2]
[381100981,1756041031653,-500.0,0.0001715,2]
[381100982,1756041031664,-500.0,0.00017167,2]
[381100983,1756041031674,-159.75345209,0.00017167,2]
[381100984,1756041031686,-500.0,0.00017167,2]
[381100985,1756041031702,-500.0,0.0001775,2]
[381100986,1756041031721,-500.0,0.0001775,2]
[381100987,1756041031738,-500.0,0.0001775,2]
[381100988,1756041031748,-500.0,0.0001775,2]
[381100989,1756041031757,-153.0,0.00017832,2]
[381100990,1756041031766,-153.0,0.00017832,2]
[381100991,1756041031775,-153.0,0.00017832,2]
[381100992,1756041031785,-74.76381077,0.00017832,2]
[381100993,1756041031796,-78.23618923,0.00017832,2]
[381100994,1756041031806,-277.35679052,0.00018119,2]
[381100995,1756041031815,-59.50396703,0.00019488,2]
[381100996,1756041031826,-228.11502474,0.00019488,2]
[381100997,1756041031835,-231.48497526,0.000195,2]
[381101000,1756041031869,-400.71691331,0.000195,2]
[381101003,1756041031881,-1367.79811143,0.000195,2]
[381101005,1756041031891,-151.0,0.00020107,2]
[381101007,1756041031900,-350.83715074,0.00020107,2]
[381101009,1756041031909,-500.0,0.00020107,2]
[381101011,1756041031919,-150.0,0.00020118,2]
[381101012,1756041031929,-1274.3,0.00020119,2]
[381101014,1756041031938,-1284.88,0.00020119,2]
[381101016,1756041031948,-1283.33,0.00020119,2]
[381101018,1756041031957,-227.95,0.00020187,2]
[381101020,1756041031966,-250.0,0.00020812,2]
[381101022,1756041031976,-298.26089446,0.00020857,2]
[381101024,1756041031986,-1000.0,0.00021341,2]
[381101026,1756041031995,-3000.0,0.00021412,2]
[381101028,1756041032004,-150.0,0.0002162,2]
[381101030,1756041032013,-5000.0,0.00021918,2]
[381101033,1756041032022,-943.92,0.00021945,30]
[381101035,1756041032031,-150.0,0.000221,2]
[381101037,1756041032040,-321.01,0.000221,2]
[381101038,1756041032050,-309.29654756,0.00022226,2]
[381101041,1756041032060,-666.0,0.00022354,3]
[381101042,1756041032070,-157.259912,0.00022477,2]
[381101045,1756041032080,-3000.0,0.00022508,2]
[381101047,1756041032091,-2000.0,0.000229,2]
[381101049,1756041032100,-321.01,0.0002331,2]
[381101051,1756041032110,-167.0,0.000234,2]
[381101053,1756041032120,-320.74051982,0.00023595,2]
[381101054,1756041032130,-3000.0,0.00023604,2]
[381101056,1756041032139,-161.645835,0.00023931,2]
[381101058,1756041032149,-2003.56,0.00024,2]
[381101060,1756041032158,-500.0,0.00024,2]
[381101062,1756041032167,-500.0,0.00024,2]
[381101064,1756041032179,-500.0,0.00024,2]
[381101066,1756041032188,-500.0,0.00024,2]
[381101069,1756041032198,-500.0,0.00024,2]
[381101071,1756041032207,-500.0,0.00024,2]
[381101072,1756041032216,-500.0,0.00024,2]
[381101074,1756041032226,-800.0,0.00024,2]
[381101076,1756041032235,-500.0,0.00024,2]
[381101079,1756041032244,-500.0,0.00024,2]
[381101080,1756041032253,-1000.0,0.00024008,2]
[381101082,1756041032262,-153.23370731,0.00024052,2]
[381101084,1756041032272,-2307.43494541,0.00024053,2]
[381101086,1756041032281,-163.07256264,0.00024053,2]
[381101089,1756041032291,-158.07335005,0.00024053,2]
[381101090,1756041032300,-160.3214762,0.00024053,2]
[381101093,1756041032310,-157.259912,0.0002411,6]
[381101095,1756041032319,-1899.6578,0.00024137,10]
[381101097,1756041032328,-224.46048873,0.00024152,2]
[381101099,1756041032337,-1300.0,0.00024152,2]
[381101101,1756041032347,-1500.0,0.00024152,2]
[381101103,1756041032356,-500.0,0.00024152,2]
[381101105,1756041032365,-500.0,0.00024152,2]
[381101107,1756041032374,-500.0,0.00024152,2]
[381101108,1756041032384,-500.0,0.00024152,2]
[381101111,1756041032393,-910.0,0.00024152,2]
[381101112,1756041032402,-500.0,0.00024152,2]
[381101114,1756041032411,-500.0,0.00024152,2]
[381101117,1756041032421,-500.0,0.00024152,2]
[381101119,1756041032432,-500.0,0.00024152,2]
[381101120,1756041032442,-500.0,0.00024152,2]
[381101123,1756041032452,-500.0,0.00024152,2]
[381101125,1756041032461,-500.0,0.00024152,2]
[381101127,1756041032470,-500.0,0.00024152,2]
[381101129,1756041032479,-500.0,0.00024152,2]
[381101131,1756041032490,-500.0,0.00024152,2]
[381101132,1756041032503,-500.0,0.00024152,2]
[381101134,1756041032512,-500.0,0.00024152,2]
[381101137,1756041032522,-500.0,0.00024152,2]
[381101139,1756041032531,-500.0,0.00024152,2]
[381101141,1756041032542,-500.0,0.00024152,2]
[381101142,1756041032551,-500.0,0.00024152,2]
[381101145,1756041032562,-500.0,0.00024152,2]
[381101147,1756041032571,-500.0,0.00024152,2]
[381101149,1756041032581,-791.0,0.00024152,2]
[381101150,1756041032590,-500.0,0.00024152,2]
[381101152,1756041032599,-500.0,0.00024152,2]
[381101154,1756041032609,-500.0,0.00024152,2]
[381101157,1756041032619,-500.0,0.00024152,2]
[381101158,1756041032629,-500.0,0.00024152,2]
[381101160,1756041032639,-500.0,0.00024152,2]
[381101162,1756041032648,-500.0,0.00024152,2]
[381101164,1756041032657,-500.0,0.00024152,2]
[381101166,1756041032667,-500.0,0.00024152,2]
[381101168,1756041032676,-132537.50838665,0.00024153,7]
[381101173,1756041032712,-316.52362598,0.00024153,7]
[381101175,1756041032724,-330.55581015,0.00024153,7]
[381101178,1756041032735,-258.32273658,0.00024153,7]
[381101181,1756041032758,-13101.48165932,0.00024153,7]
[381101285,1756041037475,-500.0,0.00019498,2]
[381101286,1756041037485,-500.0,0.00019498,2]
[381101287,1756041037496,-133.3769622,0.00019498,2]
[381101288,1756041037529,-366.6230378,0.00019498,2]
[381101289,1756041037539,-500.0,0.00019498,2]
[381101290,1756041037549,-341.5769622,0.00019498,2]
[381101291,1756041037560,-158.4230378,0.00019498,2]
[381101292,1756041037571,-194.88423262,0.00019498,2]
[381101293,1756041037581,-150.0,0.000221,2]
[381101294,1756041037591,-545.39032981,0.00024153,7]
[381101295,1756041037625,-447.31053682,0.00024153,7]
[381101296,1756041037636,-1122.2,0.00024153,7]
[381101297,1756041037681,-357.44345988,0.00024153,7]
[381101298,1756041037693,-8310.64,0.00024153,7]
[381101299,1756041037704,-310.27665851,0.00024153,7]
[381101307,1756041039523,-292.56,0.00024143,2]
[381101308,1756041039533,-292.56,0.00024143,2]
[381101309,1756041039542,-2777.88,0.00024153,7]
[381101310,1756041039554,-20947.87665101,0.00024153,7]
[381101311,1756041039565,-151617.68210491,0.00024153,7]
[381101312,1756041039579,-1739.62896985,0.00024153,7]
[381101313,1756041039598,-331.80554712,0.00024153,7]
[381101314,1756041039610,-1750.01807729,0.00024153,7]
[381101315,1756041039621,-6349.99423091,0.00024153,7]
[381101316,1756041039632,-303.90000006,0.00024153,7]
[381101317,1756041039643,-513.2688,0.00024153,7]
[381101318,1756041039690,-697.5,0.00024153,7]
[381101335,1756041042617,-500.0,0.00019498,2]
[381101336,1756041042627,-335.04991627,0.00024153,7]
[381101337,1756041042638,-316.47033406,0.00024153,7]
[381101338,1756041042666,-92543.38097082,0.00024153,7]
[381101339,1756041042675,-29608.7236401,0.00024153,7]
[381101340,1756041042684,-212.11701231,0.00024153,7]
[381101341,1756041042694,-458.63746581,0.00024153,7]
[381101342,1756041042703,-500.0,0.00024153,2]
[381101343,1756041042713,-500.0,0.00024153,2]
[381101344,1756041042722,-500.0,0.00024153,2]
[381101345,1756041042731,-500.0,0.00024153,2]
[381101346,1756041042741,-500.0,0.00024153,2]
[381101347,1756041042750,-500.0,0.00024153,2]
[381101348,1756041042760,-500.0,0.00024153,2]
[381101349,1756041042769,-500.0,0.00024153,2]
[381101351,1756041042778,-500.0,0.00024153,2]
[381101353,1756041042788,-500.0,0.00024153,2]
[381101354,1756041042797,-500.0,0.00024153,2]
[381101355,1756041042807,-500.0,0.00024153,2]
[381101356,1756041042817,-157.259912,0.00024165,6]
[381101357,1756041042826,-157.259912,0.00024216,2]
[381101359,1756041042836,-157.259912,0.0002422,6]
[381101360,1756041042845,-2307.4349454,0.0002427,2]
[381101361,1756041042854,-6944.6049,0.00024383,2]
[381101362,1756041042864,-158.07335005,0.00024399,2]
[381101363,1756041042873,-5000.0,0.000244,2]
[381101364,1756041042883,-2500.0,0.000244,2]
[381101366,1756041042893,-1000.0,0.0002444,2]
[381101367,1756041042902,-988.0912,0.0002444,2]
[381101368,1756041042912,-1347.19158381,0.0002446,2]
[381101369,1756041042921,-4045.0,0.00024466,2]
[381101370,1756041042930,-2307.4349454,0.00024487,2]
[381101371,1756041042940,-1000.0,0.00024499,2]
[381101372,1756041042949,-70105.3,0.000245,2]
[381101373,1756041042958,-200.0,0.00024502,2]
[381101374,1756041042968,-168.0,0.00024535,2]
[381101375,1756041042977,-321.01,0.0002455,2]
[381101377,1756041042987,-164.0,0.0002458,2]
[381101379,1756041042996,-23473.812,0.000246,2]
[381101381,1756041043005,-553.6839,0.000246,2]
[381101382,1756041043015,-1000.0,0.000246,2]
[381101383,1756041043024,-206.92906337,0.000246,2]
[381101385,1756041043033,-154.0,0.000246,7]
[381101386,1756041043043,-646.81,0.00024658,2]
[381101387,1756041043052,-150.0,0.00024658,2]
[381101388,1756041043063,-152.52009648,0.00024658,2]
[381101389,1756041043072,-150.0,0.00024658,2]
[381101390,1756041043081,-150.0,0.00024658,2]
[381101391,1756041043091,-150.0,0.00024658,2]
[381101392,1756041043106,-500.0,0.00024658,2]
[381101393,1756041043117,-500.0,0.00024673,2]
[381101394,1756041043127,-6030.0412483,0.00024689,2]
[381101395,1756041043136,-254.6727056,0.00024689,2]
[381101396,1756041043145,-426.54238242,0.0002469,2]
[381101397,1756041043155,-153.25,0.0002469,2]
[381101398,1756041043164,-300.0,0.00024699,16]
[381101399,1756041043174,-150.0,0.00024699,2]
[381101400,1756041043183,-2682.21,0.00024699,2]
[381101401,1756041043192,-699.0,0.000247,2]
[381101402,1756041043201,-8868.9123188,0.000247,7]
[381101403,1756041043211,-234068.63650954,0.000247,7]
[381101404,1756041043221,-164852.86964888,0.000247,2]
[381101405,1756041043230,-6445.74076635,0.000247,7]
[381101406,1756041043242,-1123.242,0.000247,7]
[381101407,1756041043287,-534.51750211,0.000247,7]
[381101439,1756041045501,-726.9762525,0.00024053,2]
[381101442,1756041045514,-1159.64463572,0.00024053,2]
[381101447,1756041045558,-1901.39902838,0.00024053,2]
[381101449,1756041045567,-3464.86471582,0.000247,7]
[381101450,1756041045617,-825.60004,0.000247,7]
[381101451,1756041046781,-3297.76,0.000247,7]
[381101452,1756041046793,-893.0,0.000247,7]
[381101453,1756041046927,-1835.06167546,0.000247,7]
[381101455,1756041072839,20343.09341945,0.00024,120]
[381101481,1756041908646,5000.0,0.00012,2]
[381101482,1756041935964,-20947.87665101,0.00012,2]
[381101554,1756042105332,1896.57290455,0.0001,2]
[381101555,1756042107885,384.57174013,7.888e-05,2]
[381101558,1756042114054,219.83728345,0.0001,2]
[381101559,1756042118398,1630.66403766,0.0001,2]
[381101560,1756042118419,1054.73818129,0.0001,2]
[381101562,1756042128013,9530.33695398,0.0001,2]
[381101566,1756042165185,-155.73751187,0.00011848,2]
[381101577,1756042231802,-7243.22537294,0.00011848,2]
[381101578,1756042231811,-300.0,0.00011899,2]
[381101579,1756042231820,-1200.0,0.00011899,2]
[381101580,1756042231830,-1751.403535,0.000119,2]
[381101581,1756042231839,-195.716055,0.000119,2]
[381101582,1756042231848,-300.0,0.00011948,2]
[381101583,1756042231857,-500.0,0.00011973,2]
[381101584,1756042231866,-500.0,0.00011973,2]
[381101585,1756042231875,-502.72473506,0.00011973,2]
[381101586,1756042231884,-500.0,0.00011973,2]
[381101587,1756042231893,-150.0,0.00011997,2]
[381101588,1756042231902,-1200.0,0.00011998,2]
[381101589,1756042231911,-500.0,0.00011998,2]
[381101590,1756042231921,-500.0,0.00011998,2]
[381101591,1756042231930,-500.0,0.00011998,2]
[381101592,1756042231940,-500.0,0.00011998,2]
[381101593,1756042231950,-500.0,0.00011998,2]
[381101594,1756042231960,-500.0,0.00011998,2]
[381101595,1756042231970,-500.0,0.00011998,2]
[381101596,1756042231979,-500.0,0.00011998,2]
[381101597,1756042231994,-500.0,0.00011998,2]
[381101598,1756042232003,-427.20471304,0.00011998,2]
[381101599,1756042232012,-500.0,0.00011998,2]
[381101600,1756042232022,-933.76377523,0.00011999,2]
[381101601,1756042232031,-217.35005564,0.00011999,2]
[381101602,1756042232040,-585.10356204,0.00011999,2]
[381101603,1756042232050,-264.20295848,0.00011999,2]
[381101604,1756042232060,-152.14503894,0.00011999,2]
[381101605,1756042232070,-1068.94699863,0.00012,2]
[381101609,1756042232258,-23446.05286493,0.00012,2]
[381101612,1756042232270,-1407.86705052,0.00012,2]
[381101619,1756042232318,-2107.78865369,0.00012,2]
[381101621,1756042232334,-7344.96424643,0.00012,2]
[381101641,1756042238229,-985.42108382,0.00012,2]
[381101643,1756042238242,-844.84722634,0.00012,2]
[381101645,1756042238254,-451.0506,0.00012,2]
[381101648,1756042238265,-5906.0,0.00012,2]
[381101650,1756042238276,-317.98127747,0.00012,2]
[381101652,1756042238287,-3085.56098277,0.00012,2]
[381101654,1756042238298,-18571.43339956,0.00012,2]
[381101656,1756042238309,-40308.42762625,0.00012,2]
[381101658,1756042238320,-10877.45617318,0.00012,2]
[381101661,1756042238331,-4614.9662908,0.00012,2]
[381101663,1756042238342,-400.03831907,0.00012,2]
[381101665,1756042238352,-837.57754225,0.00012,2]
[381101667,1756042238363,-1389.85617291,0.00012,2]
[381101781,1756042240921,-406.78185936,0.00012,2]
[381101782,1756042240955,-5555.25377811,0.00012,2]
[381101783,1756042241029,-6888.1,0.00012,2]
[381101784,1756042241048,-5924.11619658,0.00012,2]
[381101785,1756042241066,-3026.6679274,0.00012,2]
[381101786,1756042241083,-1027.9146,0.00012,2]
[381101790,1756042243535,-278.02196257,0.00012,2]
[381101792,1756042243771,-95145.16386568,0.00012,2]
[381101889,1756042253462,13686.29624204,0.00012,3]
[381101890,1756042297459,-350.0,0.0001176,2]
[381101891,1756042300288,-81.097,0.0001176,2]
[381101919,1756042959730,-200.0,0.00011656,2]
[381101920,1756042962183,-200.0,0.00011656,2]
[381101922,1756042963977,-200.0,0.00011656,2]
[381101923,1756042965676,-66.97087456,0.00011656,2]
[381101927,1756043008216,500.0,0.00028767,120]
[381101928,1756043009165,500.0,0.00028767,120]
[381101929,1756043009918,500.0,0.00028767,120]
[381101930,1756043010680,500.0,0.00028767,120]
[381101931,1756043011472,500.0,0.00028767,120]
[381101932,1756043012162,500.0,0.00028767,120]
[381101933,1756043012979,500.0,0.00028767,120]
[381101935,1756043013719,500.0,0.00028767,120]
[381101937,1756043014359,500.0,0.00028767,120]
[381101939,1756043014844,500.0,0.00028767,120]
[381101940,1756043016951,500.0,0.00028767,120]
[381101941,1756043017344,500.0,0.00028767,120]
[381101942,1756043018279,500.0,0.00028767,120]
[381101943,1756043019371,500.0,0.00028767,120]
[381101944,1756043020457,500.0,0.00028767,120]
[381101945,1756043021404,500.0,0.00028767,120]
[381101946,1756043022045,500.0,0.00028767,120]
[381101947,1756043022713,500.0,0.00028767,120]
[381101948,1756043023452,500.0,0.00028767,120]
[381101949,1756043024612,500.0,0.00028767,120]
[381101950,1756043025930,500.0,0.00028767,120]
[381101951,1756043026666,500.0,0.00028767,120]
[381101952,1756043028524,500.0,0.00028767,120]
[381101953,1756043028978,500.0,0.00028767,120]
[381101954,1756043029229,500.0,0.00028767,120]
[381101955,1756043039319,500.0,0.00028767,120]
[381101956,1756043040557,500.0,0.00028767,120]
[381101957,1756043041488,500.0,0.00028767,120]
[381101958,1756043042533,500.0,0.00028767,120]
[381101959,1756043043582,500.0,0.00028767,120]
[381101960,1756043044907,500.0,0.00028767,120]
[381101961,1756043046474,500.0,0.00028767,120]
[381101962,1756043047947,500.0,0.00028767,120]
[381101964,1756043057549,167.04133195,0.00028767,120]
[381101966,1756043077718,160.12638383,0.00011656,7]
[381101970,1756043181118,-200.0,0.00011751,2]
[381101973,1756043183697,-200.0,0.00011751,2]
[381101985,1756043432083,-500.42083,0.0001188,2]
[381101986,1756043432093,-1200.0,0.00011899,2]
[381101987,1756043432102,-1200.0,0.00011899,2]
[381101988,1756043432112,-152.62243071,0.000119,2]
[381101989,1756043432122,-1576.2631815,0.000119,2]
[381101990,1756043432131,-197.79960908,0.000119,2]
[381101991,1756043432141,-300.0,0.00011971,2]
[381101992,1756043432150,-300.0,0.00011971,2]
[381101993,1756043432159,-266.92751746,0.00011972,2]
[381101994,1756043432169,-466.53624127,0.00011972,2]
[381101995,1756043432178,-301.02903972,0.00011972,2]
[381101996,1756043432187,-500.0,0.00011972,2]
[381101997,1756043432197,-500.0,0.00011972,2]
[381101998,1756043432206,-32.13065091,0.00011972,2]
[381101999,1756043432237,-294.75610989,0.00011972,2]
[381102000,1756043432247,-150.0,0.00011972,2]
[381102001,1756043432257,-500.0,0.00011973,2]
[381102002,1756043432266,-500.0,0.00011973,2]
[381102003,1756043432276,-500.0,0.00011973,2]
[381102004,1756043432286,-500.0,0.00011973,2]
[381102005,1756043432295,-500.0,0.00011973,2]
[381102006,1756043432304,-500.0,0.00011973,2]
[381102007,1756043432313,-500.0,0.00011973,2]
[381102008,1756043432323,-500.0,0.00011973,2]
[381102009,1756043432334,-500.67120204,0.00011973,2]
[381102010,1756043432343,-500.0,0.00011973,2]
[381102011,1756043432353,-150.92143273,0.00011973,2]
[381102012,1756043432362,-502.90418228,0.00011973,2]
[381102013,1756043432371,-500.0,0.00011973,2]
[381102014,1756043432381,-586.08403236,0.00011973,2]
[381102015,1756043432390,-500.0,0.00011973,2]
[381102016,1756043432399,-500.0,0.00011973,2]
[381102017,1756043432408,-500.0,0.00011973,2]
[381102018,1756043432418,-500.0,0.00011993,2]
[381102019,1756043432427,-500.0,0.00011993,2]
[381102020,1756043432437,-500.0,0.00011993,2]
[381102023,1756043432446,-500.0,0.00011993,2]
[381102026,1756043432455,-500.0,0.00011993,2]
[381102029,1756043432464,-500.0,0.00011993,2]
[381102031,1756043432473,-500.0,0.00011993,2]
[381102033,1756043432482,-500.0,0.00011993,2]